Cogmind - Beta 9.2 @@@ ROGUE MODE // 2019.12.23 @ 14:46:12 Player: Fleshy Vegetable Bird Result: Destroyed by G-67 Veteran with Plasma Rifle Performance ------------- Evolutions (3) 1500 Regions Visited (14) 2800 Robots Destroyed (129) 645 Value Destroyed (3898) 3898 Prototype IDs (18) 360 Alien Tech Used (0) 0 Bonus (1275) 1275 TOTAL SCORE: 10478 Bonus ------- High Alert Combat Kills 151 Follower Combat Kills 124 Entered Garrisons 200 Used RIF Installer 500 Met Data Miner 300 Cogmind --------- Core Integrity 0/700 Matter 290/300 Energy 99/100 System Corruption 0% Temperature Cool (0) Movement Rolling (90) Location -6/Proximity Caves Parts ------- > --- POWER (1) -------- (None) > --- PROPULSION (4) --- Armored Wheel > --- UTILITY (6) ------ Makeshift Terrain Scan Processor > --- WEAPON (2) ------- (None) > --- INVENTORY (4) ---- Improved Heat Sink Maneuvering Thrusters Relay Coupler [Sentry] (22) Arc Thrower Peak State ------------ > --- POWER ------------ Light Nuclear Core > --- PROPULSION ------- Improved Treads Advanced Treads Wheel Compact Wheel > --- UTILITY ---------- Medium Storage Unit Medium Storage Unit Large Storage Unit Large Storage Unit Advanced Signal Interpreter Hacking Suite > --- WEAPON ----------- Heavy Assault Rifle Heavy Battle Rifle > --- INVENTORY -------- Light Angular Momentum Engine Cesium-ion Thruster Improved Heat Sink Large Storage Unit Advanced Terrain Scanner Makeshift Terrain Scan Processor Makeshift Terrain Scan Processor Target Analyzer Actuator Array Maneuvering Thrusters Hardened Light Armor Plating Hacking Suite Relay Coupler [Sentry] EM Pulse Cannon Heavy Battle Rifle Remote Datajack Scythe [Rating: 31] Favorites ----------- Power Ion Engine Engine Ion Engine Power Core Light Nuclear Core Propulsion Wheel Treads Light Treads Leg Aluminum Leg Wheel Wheel Flight Unit Improved VTOL Module Utility Large Storage Unit Device Maneuvering Thrusters Storage Large Storage Unit Processor Advanced Signal Interpreter Hackware Hacking Suite Protection Improved Light Armor Plating Weapon Advanced Beam Cannon Energy Gun Advanced Beam Rifle Energy Cannon Advanced Beam Cannon Ballistic Gun High-powered Shotgun Ballistic Cannon Light Cannon Launcher Missile Launcher Impact Weapon Great Maul Slashing Weapon Scythe Build | -11 -10 -10 -9 -9 -9 -8 -8 -8 -8 -7 -7 -7 -7 -6 ------- Run | Scr Mat Min Mat Min Exi Min Mat Gar Mat Fac Low Low Dat Pro Slots Evolved 6 | . . . 2 . . . 2 . . 2 . . . . Power . | . . . . . . . . . . . . . . . Propulsion 2 | . . . 1 . . . 1 . . . . . . . Utility 4 | . . . 1 . . . 1 . . 2 . . . . Weapon . | . . . . . . . . . . . . . . . Parts Attached 105 | 6 5 2 10 6 1 3 20 4 18 6 2 13 . 9 Power 12 | 1 . 1 2 . 1 . 1 1 1 . 1 2 . 1 Engine 8 | 1 . 1 2 . 1 . 1 . 1 . . 1 . . Core 4 | . . . . . . . . 1 . . 1 1 . 1 Reactor . | . . . . . . . . . . . . . . . Propulsion 33 | 2 . . 3 5 . . 7 1 6 1 . 6 . 2 Treads 9 | . . . . . . . 4 . 3 . . 2 . . Leg 7 | . . . . 4 . . . . . . . 2 . 1 Wheel 16 | 2 . . 3 1 . . 3 1 2 1 . 2 . 1 Hover . | . . . . . . . . . . . . . . . Flight 1 | . . . . . . . . . 1 . . . . . Utility 22 | 1 4 . 2 . . . 3 . 4 4 . . . 4 Device 1 | . . . . . . . . . . 1 . . . . Storage 11 | 1 4 . . . . . 1 . 4 . . . . 1 Processor 2 | . . . . . . . . . . 1 . . . 1 Hackware 4 | . . . . . . . 2 . . 1 . . . 1 Protection 4 | . . . 2 . . . . . . 1 . . . 1 Artifact . | . . . . . . . . . . . . . . . Weapon 38 | 2 1 1 3 1 . 3 9 2 7 1 1 5 . 2 Energy Gun 8 | 2 . . . . . . 2 . 4 . . . . . Energy Cannon 9 | . . . 1 1 . 2 3 1 . . . 1 . . Ballistic Gun 11 | . 1 . 2 . . . 2 . 1 1 . 4 . . Ballistic Cannon 1 | . . 1 . . . . . . . . . . . . Launcher 2 | . . . . . . 1 . 1 . . . . . . Special Weapon . | . . . . . . . . . . . . . . . Impact Weapon 1 | . . . . . . . . . . . . . . 1 Slashing Weapon 6 | . . . . . . . 2 . 2 . 1 . . 1 Piercing Weapon . | . . . . . . . . . . . . . . . Special Melee Weapon . | . . . . . . . . . . . . . . . Unidentified Prototypes 3 | . . . 1 . . . 1 . 1 . . . . . Parts Lost 53 | . 2 1 6 4 . 1 9 4 4 2 1 15 . 4 Power 9 | . . 1 2 . . . 1 1 . . 1 3 . . Propulsion 22 | . . . 2 3 . . 3 2 1 1 . 7 . 3 Utility 3 | . . . . . . 1 . . 1 . . . . 1 Weapon 19 | . 2 . 2 1 . . 5 1 2 1 . 5 . . Highest Loss Streak 6 | . 2 1 3 2 . 1 3 2 2 2 1 6 . 2 Average Slot Usage (%) 88 | . 82 97 94 93 100 90 80 78 92 97 99 85 69 57 Engine 7 | . 14 13 10 11 11 11 8 6 4 7 3 2 . . Core 1 | . . . . . . . . 2 4 . 3 3 . . Treads 8 | . . . . . . . 15 19 15 15 15 8 . . Leg 6 | . . . . 18 33 33 5 . . . . 4 15 11 Wheel 13 | . 28 28 30 8 . . 9 4 14 12 15 6 . 1 Storage 25 | . 23 28 22 22 22 22 19 27 31 30 30 30 30 20 Processor 1 | . . . . . . . . . . 2 7 7 7 6 Hackware 3 | . . . . . . . 4 9 3 7 7 7 7 5 Protection 2 | . . . 10 11 11 2 . . . 5 . . . 1 Energy Gun 1 | . 5 . . . . . . . 9 4 . . . . Energy Cannon 4 | . . . 3 17 22 16 4 3 2 . . . . . Ballistic Gun 7 | . 11 14 9 3 . . 4 . 5 10 14 11 7 3 Ballistic Cannon 1 | . . 12 8 . . . . . . . . . . . Slashing Weapon 1 | . . . . . . . 5 . . . . . . 4 Naked Turns 27 | . . . . . . . . . . . . . . 27 Heaviest Build 67 | 11 37 42 45 48 48 48 47 49 60 66 61 67 52 64 Greatest Support 60 | 20 20 20 30 36 33 33 60 60 40 40 20 45 20 35 Greatest Overweight (x) 21 | . 1 2 2 15 1 1 4 4 5 3 3 6 2 21 Average Overweight (x) 1 | . . 1 1 1 1 1 1 1 2 1 2 1 2 1 Largest Inventory Capacity 26 | 6 16 16 16 16 16 16 20 20 24 24 24 24 24 26 Average Capacity 18 | 5 10 16 16 16 16 16 16 20 21 24 24 24 24 18 Most Carried 24 | 4 6 15 16 16 16 16 19 20 23 23 24 23 17 18 Average Carried 16 | 2 4 13 13 15 15 15 15 19 19 21 21 18 17 12 Final Capacity 24 | 6 16 16 16 16 16 16 20 20 24 24 24 24 24 4 Final Carried 23 | 4 6 15 15 16 16 16 19 20 22 22 23 17 17 4 Class Distribution -------------------- 40% | Hauler-Mutant 39% | Mutant 20% | Scavenger-Mutant Dominant Class ---------------- Mutant | -10/Materials Mutant | -10/Mines Mutant | -9/Materials Mutant | -9/Mines Mutant | -9/Exiles Mutant | -8/Mines Scavenger-Mutant | -8/Materials Hauler-Mutant | -8/Garrison Hauler-Mutant | -8/Materials Hauler-Mutant | -7/Factory Hauler-Mutant | -7/Lower Caves Hauler-Mutant | -7/Lower Caves Hauler-Mutant | -7/Data Miner Hauler-Mutant | -6/Proximity Caves Resources | -11 -10 -10 -9 -9 -9 -8 -8 -8 -8 -7 -7 -7 -7 -6 ----------- Run | Scr Mat Min Mat Min Exi Min Mat Gar Mat Fac Low Low Dat Pro Matter Collected 2574 | 250 81 124 419 89 . 26 576 56 399 34 119 336 . 65 Remotely . | . . . . . . . . . . . . . . . Salvage Created 4635 | 123 234 168 440 316 . 233 793 208 995 34 205 702 . 184 Parts 242 | 6 12 9 45 18 . 9 36 17 51 3 2 33 . 1 Haulers Intercepted 6 | . 2 . 1 . . . 1 . 2 . . . . . Recyclers Shooed 7 | 1 . . . 2 . 2 2 . . . . . . . Parts Field Recycled . | . . . . . . . . . . . . . . . Retrieved Matter . | . . . . . . . . . . . . . . . Parts Self-Destructed 42 | . . . . . . . . . . . 10 27 . 5 Prevented 4 | . . . . . . . . . . . . 4 . . Kills | -11 -10 -10 -9 -9 -9 -8 -8 -8 -8 -7 -7 -7 -7 -6 ------- Run | Scr Mat Min Mat Min Exi Min Mat Gar Mat Fac Low Low Dat Pro Combat Hostiles Destroyed 98 | . 3 3 17 8 . 9 12 12 15 1 2 16 . . Melee 6 | . . . . . . . 4 . 2 . . . . . Guns 46 | . 3 1 7 4 . . 7 . 8 1 . 15 . . Cannons 21 | . . 2 10 4 . . . 1 3 . . 1 . . AOE 24 | . . . . . . 9 1 11 1 . 2 . . . Classes Destroyed 15 | 2 2 . 4 1 . 2 1 . 1 1 1 . . . Worker 7 | . . . 1 2 . 2 1 . 1 . . . . . Builder 1 | . . . . . . 1 . . . . . . . . Tunneler 4 | 3 . . . 1 . . . . . . . . . . Hauler 6 | . 2 . 1 . . . 1 . 2 . . . . . Recycler 5 | 1 . 1 . . . 1 1 . 1 . . . . . Minesweeper 1 | . . . . . . . . . . . 1 . . . Operator 1 | . . . . . . . 1 . . . . . . . Watcher 6 | . . . 3 . . . 1 . 2 . . . . . Swarmer 31 | . . . 14 3 . 4 . 5 2 . . 3 . . Grunt 49 | . 3 3 2 4 . 4 8 6 6 . 2 11 . . Brawler 1 | . . . . . . . . . 1 . . . . . Duelist 3 | . . . . 1 . . . . . . . 2 . . Sentry 10 | . . . 1 . . . 3 1 5 . . . . . Hunter 3 | . . . . . . 1 1 . 1 . . . . . Programmer 1 | . . . . . . . . . . 1 . . . . Best Kill Streak 7 | 4 4 2 4 4 . 7 6 6 4 1 2 4 . . Combat Bots Only 6 | . 3 2 4 3 . 5 5 6 3 1 2 4 . . Max Kills in Single Turn 3 | 1 1 1 2 1 . 3 2 3 1 1 2 1 . . Gunslinging . | . . . . . . . . . . . . . . . Exploded 3 | . . . . . . 2 1 3 1 . 2 . . . Melee 1 | . . . . . . . 1 . 1 . . . . . Uniques/NPCs Destroyed . | . . . . . . . . . . . . . . . Combat | -11 -10 -10 -9 -9 -9 -8 -8 -8 -8 -7 -7 -7 -7 -6 -------- Run | Scr Mat Min Mat Min Exi Min Mat Gar Mat Fac Low Low Dat Pro Damage Taken 7275 | 42 256 138 739 308 . 253 1374 319 764 153 255 2085 . 589 Core 1494 | 38 46 48 118 38 . 38 195 60 197 26 90 384 . 216 Absorbed by Shields . | . . . . . . . . . . . . . . . Core Remaining (%) 49 | 84 . 47 . . . 51 . . 17 . . . . . Volleys Fired 361 | 6 25 15 67 36 . 18 60 18 53 5 4 54 . . Largest 2 | 2 2 2 2 2 . 2 2 2 2 2 2 2 . . Hottest 148 | 90 90 55 103 136 . 136 148 92 136 48 48 96 . . Shots Fired 649 | 12 36 26 128 70 . 20 114 20 105 10 8 100 . . Gun 426 | 12 36 15 51 30 . . 86 . 89 10 8 89 . . Cannon 198 | . . 11 77 40 . 10 28 5 16 . . 11 . . Launcher 25 | . . . . . . 10 . 15 . . . . . . Special . | . . . . . . . . . . . . . . . Kinetic 388 | . 17 26 106 30 . . 77 . 25 10 8 89 . . Thermal 178 | 6 12 . 22 40 . 10 24 . 64 . . . . . Explosive 25 | . . . . . . 10 . 15 . . . . . . Electromagnetic 58 | 6 7 . . . . . 13 5 16 . . 11 . . Robot Hit Streak 17 | 2 4 7 9 7 . 8 10 5 14 3 3 17 . . Robot Miss Streak 6 | 1 2 2 6 2 . 3 4 3 5 2 3 5 . . Penetration Max . | . . . . . . . . . . . . . . . Secondary Targets 3 | . 1 . . . . . . . . . . 2 . . Max Gunslinging Chain 1 | . 1 . . . . . . . . . . 1 . . Shots Hit Robots 434 | 6 23 18 66 42 . 9 77 11 80 7 7 79 . 9 Core Hits 219 | 5 11 6 24 16 . 26 29 23 35 2 9 30 . 3 Critical Hits 7 | . . . 2 2 . . 2 . 1 . . . . . Critical Kills 5 | . . . 2 . . . 2 . 1 . . . . . Critical Parts Destroyed 2 | . . . . 2 . . . . . . . . . . Melee Attacks 37 | . . . . . . . 12 . 7 . 7 . . 11 Impact 3 | . . . . . . . . . . . . . . 3 Slashing 34 | . . . . . . . 12 . 7 . 7 . . 8 Piercing . | . . . . . . . . . . . . . . . Sneak Attacks . | . . . . . . . . . . . . . . . Combat Hostiles . | . . . . . . . . . . . . . . . Follow-up Attacks 3 | . . . . . . . 2 . . . . . . 1 Damage Inflicted 11301 | 136 264 235 884 638 . 1421 1572 1079 1904 146 800 1602 . 620 Guns 4832 | 91 264 139 307 127 . . 780 . 1487 146 68 1423 . . Cannons 2031 | . . 96 577 511 . 103 294 57 214 . . 179 . . Explosions 3170 | 45 . . . . . 1318 263 1022 64 . 458 . . . Melee 1268 | . . . . . . . 235 . 139 . 274 . . 620 Ramming . | . . . . . . . . . . . . . . . Kinetic 3920 | . 160 235 641 127 . . 700 . 420 146 68 1423 . . Thermal 2489 | 70 76 . 243 511 . 103 323 32 1131 . . . . . Explosive 2464 | . . . . . . 1318 156 990 . . . . . . Electromagnetic 1160 | 66 28 . . . . . 158 57 214 . 458 179 . . Impact 55 | . . . . . . . . . . . . . . 55 Slashing 1213 | . . . . . . . 235 . 139 . 274 . . 565 Piercing . | . . . . . . . . . . . . . . . Highest Corruption 1 | . . . . . . . . . 1 . . . . . Average Corruption 1 | . . . . . . . . . 1 . . . . . Corruption Purged . | . . . . . . . . . . . . . . . Effects 4 | . . . . . . . . . 4 . . . . . Message Errors 4 | . . . . . . . . . 4 . . . . . Overload Shots . | . . . . . . . . . . . . . . . Overflow Damage 510 | . . . 18 11 . 60 10 62 11 . 144 . . 194 Projectiles 32 | . . . 18 11 . . . . 3 . . . . . Explosions 139 | . . . . . . 60 10 62 . . 7 . . . Melee 339 | . . . . . . . . . 8 . 137 . . 194 Knockbacks 7 | . . 1 6 . . . . . . . . . . . Impact . | . . . . . . . . . . . . . . . Kinetic 5 | . . 1 4 . . . . . . . . . . . Secondary 2 | . . . 2 . . . . . . . . . . . Self-Inflicted Damage 183 | 43 . . . . . . 64 76 . . . . . . Shots 5 | 2 . . . . . . 1 2 . . . . . . Rammed . | . . . . . . . . . . . . . . . Targets Rammed . | . . . . . . . . . . . . . . . Kicked . | . . . . . . . . . . . . . . . Crushed . | . . . . . . . . . . . . . . . Highest Temperature 369 | 144 314 13 319 341 . 168 363 51 369 . 8 186 . . Average Temperature 102 | 62 170 5 126 113 . 62 74 15 116 . 8 77 . . Received Heat Transfer 2481 | . 153 75 72 102 . 117 414 108 279 18 63 831 . 249 Effects 2 | . . . . . . . . . 2 . . . . . Interference 1 | . . . . . . . . . 1 . . . . . Damage (minor) 1 | . . . . . . . . . 1 . . . . . Siege Activations . | . . . . . . . . . . . . . . . Robots Corrupted . | . . . . . . . . . . . . . . . Combat Hostiles . | . . . . . . . . . . . . . . . Parts Fried 3 | . . . . . . . 1 . . . 2 . . . Impact Corruptions . | . . . . . . . . . . . . . . . Robots Melted 1 | . . . . . . . . . 1 . . . . . Combat Hostiles 1 | . . . . . . . . . 1 . . . . . Parts Melted 7 | . . . 2 1 . . . . 4 . . . . . Heat Transferred 4470 | 124 222 . 444 925 . 185 496 50 2024 . . . . . Parts Sabotaged . | . . . . . . . . . . . . . . . Parts Stolen . | . . . . . . . . . . . . . . . Parts Stripped . | . . . . . . . . . . . . . . . Power Chain Reactions 6 | 2 . . . . . . 2 1 1 . . . . . Missiles Intercepted . | . . . . . . . . . . . . . . . Alert | -11 -10 -10 -9 -9 -9 -8 -8 -8 -8 -7 -7 -7 -7 -6 ------- Run | Scr Mat Min Mat Min Exi Min Mat Gar Mat Fac Low Low Dat Pro Peak Influence 605 | 20 113 58 243 231 . 279 297 563 605 250 . . . . Average Influence 200 | 7 81 44 149 65 . 192 181 401 451 228 . . . . Maximum Alert Level 2 | . . . 1 1 . 1 1 2 2 1 . . . . Low Security (%) 54 | 100 100 100 59 92 . 35 58 21 . . . . . . Level 1 27 | . . . 40 7 . 64 41 8 16 100 . . . . Level 2 18 | . . . . . . . . 70 83 . . . . . Level 3 . | . . . . . . . . . . . . . . . Level 4 . | . . . . . . . . . . . . . . . Level 5 . | . . . . . . . . . . . . . . . High Security . | . . . . . . . . . . . . . . . Max Security . | . . . . . . . . . . . . . . . Squads Dispatched 9 | . . 1 2 . . 1 3 . 2 . . . . . Investigation 3 | . . 1 1 . . . 1 . . . . . . . Extermination . | . . . . . . . . . . . . . . . Reinforcement 5 | . . . 1 . . 1 2 . 1 . . . . . Assault 1 | . . . . . . . . . 1 . . . . . Garrison . | . . . . . . . . . . . . . . . Intercept . | . . . . . . . . . . . . . . . Construction Impeded 1 | . . . . . . 1 . . . . . . . . Haulers Reinforced . | . . . . . . . . . . . . . . . Stealth | -11 -10 -10 -9 -9 -9 -8 -8 -8 -8 -7 -7 -7 -7 -6 --------- Run | Scr Mat Min Mat Min Exi Min Mat Gar Mat Fac Low Low Dat Pro Distress Signals 5 | . . . . 1 . 1 . . 3 . . . . . Communications Jammed . | . . . . . . . . . . . . . . . Distress Signals . | . . . . . . . . . . . . . . . Times Spotted 188 | . 7 5 35 14 . 11 22 11 41 2 6 26 . 8 Peak Tracking Total 8 | . 3 3 8 4 . 7 7 6 6 1 4 6 . 3 Tactical Retreats 26 | . . . 5 4 . 2 1 . 5 . 2 6 . 1 Traps | -11 -10 -10 -9 -9 -9 -8 -8 -8 -8 -7 -7 -7 -7 -6 ------- Run | Scr Mat Min Mat Min Exi Min Mat Gar Mat Fac Low Low Dat Pro Traps Triggered 5 | . . . 1 . . . . 1 1 . 2 . . . Indirectly 2 | . . . . . . . . . . . 2 . . . Trap Hack Attempts . | . . . . . . . . . . . . . . . Triggered . | . . . . . . . . . . . . . . . Disarmed . | . . . . . . . . . . . . . . . Reprogrammed . | . . . . . . . . . . . . . . . Reused 4 | . . . . . . . . . . . 1 3 . . Traps Extracted . | . . . . . . . . . . . . . . . Installed 8 | . . . . . . . . . . . 5 3 . . Triggered 4 | . . . . . . . . . . . 1 3 . . Exploded 3 | . . . . . . . . . 3 . . . . . Machines | -11 -10 -10 -9 -9 -9 -8 -8 -8 -8 -7 -7 -7 -7 -6 ---------- Run | Scr Mat Min Mat Min Exi Min Mat Gar Mat Fac Low Low Dat Pro Machines Disabled 5 | . . . . . . . 3 2 . . . . . . Max in Single Turn 2 | . . . . . . . 2 1 . . . . . . Garrison Access 1 | . . . . . . . . . . 1 . . . . Garrison Relay 1 | . . . . . . . . 1 . . . . . . Machines Sabotaged . | . . . . . . . . . . . . . . . Garrisons Compromised . | . . . . . . . . . . . . . . . Overloaded Fab Kills . | . . . . . . . . . . . . . . . Fab Network Shutdowns . | . . . . . . . . . . . . . . . Hacking | -11 -10 -10 -9 -9 -9 -8 -8 -8 -8 -7 -7 -7 -7 -6 --------- Run | Scr Mat Min Mat Min Exi Min Mat Gar Mat Fac Low Low Dat Pro Machines Accessed 25 | . 4 1 3 . 1 . 6 . 3 3 . 1 3 . Terminals 12 | . 4 . 2 . . . 3 . 1 1 . 1 . . Fabricators . | . . . . . . . . . . . . . . . Repair Stations 3 | . . . 1 . . . 1 . 1 . . . . . Recycling Units . | . . . . . . . . . . . . . . . Scanalyzers 3 | . . . . . . . 1 . 1 1 . . . . Garrison Access 2 | . . . . . . . 1 . . 1 . . . . Total Hacks 133 | . 18 1 8 . 23 . 30 . 17 8 . 7 21 . Successful 108 | . 11 1 4 . 23 . 24 . 15 6 . 3 21 . Failed 25 | . 7 . 4 . . . 6 . 2 2 . 4 . . Catastrophic 4 | . . . 1 . . . 2 . . 1 . . . . Database Lockouts . | . . . . . . . . . . . . . . . Manual 42 | . 18 . 3 . . . 10 . 3 2 . 6 . . Terminals 47 | . 18 . 3 . . . 14 . 3 2 . 7 . . Fabricators . | . . . . . . . . . . . . . . . Repair Stations 15 | . . . 5 . . . 4 . 6 . . . . . Recycling Units . | . . . . . . . . . . . . . . . Scanalyzers 24 | . . . . . . . 11 . 8 5 . . . . Garrison Access 2 | . . . . . . . 1 . . 1 . . . . Terminal Hacks 53 | . 2 1 . . 23 . 4 . . . . 2 21 . Record 35 | . . . . . 23 . . . . . . 1 11 . Part Schematic 8 | . . . . . . . . . . . . 1 7 . Prototype ID Bank 4 | . . . . . . . 1 . . . . . 3 . Open Door 1 | . . 1 . . . . . . . . . . . . Terminal Index 2 | . 1 . . . . . 1 . . . . . . . Locate Traps 1 | . . . . . . . 1 . . . . . . . Recall Reinforcements 1 | . . . . . . . 1 . . . . . . . Hauler Manifests 1 | . 1 . . . . . . . . . . . . . Fabricator Hacks . | . . . . . . . . . . . . . . . Repair Station Hacks 14 | . . . 4 . . . 4 . 6 . . . . . Scan Component 7 | . . . 2 . . . 2 . 3 . . . . . Repair 7 | . . . 2 . . . 2 . 3 . . . . . Recycling Unit Hacks . | . . . . . . . . . . . . . . . Scanalyzer 23 | . . . . . . . 11 . 8 4 . . . . Insert Component 10 | . . . . . . . 5 . 3 2 . . . . Analyze 13 | . . . . . . . 6 . 5 2 . . . . Garrison Access Hacks 2 | . . . . . . . 1 . . 1 . . . . Unlock Access 1 | . . . . . . . 1 . . . . . . . Seal Access 1 | . . . . . . . . . . 1 . . . . Unauthorized Hacks 44 | . 23 . 2 . . . 12 . 3 2 . 2 . . Terminals 16 | . 9 . . . . . 4 . 1 1 . 1 . . Track 5 | . 3 . . . . . 1 . . . . 1 . . Assimilate 1 | . 1 . . . . . . . . . . . . . Botnet 8 | . 4 . . . . . 2 . 1 1 . . . . Operators 2 | . 1 . . . . . 1 . . . . . . . Fabricators . | . . . . . . . . . . . . . . . Repair Stations . | . . . . . . . . . . . . . . . Recycling Units . | . . . . . . . . . . . . . . . Scanalyzers . | . . . . . . . . . . . . . . . Garrison Access . | . . . . . . . . . . . . . . . Data Cores Recovered . | . . . . . . . . . . . . . . . Used . | . . . . . . . . . . . . . . . Hacking Detections 17 | . 4 . 3 . . . 5 . 2 2 . 1 . . Full Trace Events 2 | . . . 1 . . . 1 . . . . . . . Feedback Events . | . . . . . . . . . . . . . . . Feedback Blocked . | . . . . . . . . . . . . . . . Robot Schematics Acquired . | . . . . . . . . . . . . . . . Robots Built . | . . . . . . . . . . . . . . . Matter . | . . . . . . . . . . . . . . . Time . | . . . . . . . . . . . . . . . Total Robot Build Rating . | . . . . . . . . . . . . . . . Part Schematics Acquired 16 | . . . . . . . 5 . 3 . . 1 7 . Parts Built . | . . . . . . . . . . . . . . . Matter . | . . . . . . . . . . . . . . . Time . | . . . . . . . . . . . . . . . Total Part Build Rating . | . . . . . . . . . . . . . . . Parts Repaired 7 | . . . 2 . . . 2 . 3 . . . . . Time 252 | . . . 64 . . . 76 . 112 . . . . . Parts Recycled . | . . . . . . . . . . . . . . . Recycled Matter . | . . . . . . . . . . . . . . . Retrieved Matter . | . . . . . . . . . . . . . . . Retrieved Components . | . . . . . . . . . . . . . . . Parts Scanalyzed 9 | . . . . . . . 5 . 3 1 . . . . Part Schematics Acquired 8 | . . . . . . . 5 . 3 . . . . . Parts Damaged . | . . . . . . . . . . . . . . . Bothacking | -11 -10 -10 -9 -9 -9 -8 -8 -8 -8 -7 -7 -7 -7 -6 ------------ Run | Scr Mat Min Mat Min Exi Min Mat Gar Mat Fac Low Low Dat Pro Used RIF Installer 1 | . . . . . . . . 1 . . . . . . Robots Hacked . | . . . . . . . . . . . . . . . Non-combat . | . . . . . . . . . . . . . . . Combat . | . . . . . . . . . . . . . . . Robot Hacks Applied . | . . . . . . . . . . . . . . . Relay Couplers Released 4 | . . . . . . . . 4 . . . . . . Machine Destruction 4 | . . . . . . . . 4 . . . . . . Robots Rewired . | . . . . . . . . . . . . . . . Allies Hacked . | . . . . . . . . . . . . . . . Hacks Repelled . | . . . . . . . . . . . . . . . Allies | -11 -10 -10 -9 -9 -9 -8 -8 -8 -8 -7 -7 -7 -7 -6 -------- Run | Scr Mat Min Mat Min Exi Min Mat Gar Mat Fac Low Low Dat Pro Total Allies 2 | . 1 . . . . . . . . . . . . 1 Largest Group 1 | . 1 1 1 . . . . . . . . . . 1 Highest-Rated Group 94 | . 10 10 10 . . . . . . . . . . 94 Highest-Rated Ally 94 | . 10 10 10 . . . . . . . . . . 94 Total Orders 1 | . . . 1 . . . . . . . . . . . GOTO 1 | . . . 1 . . . . . . . . . . . Ally Attacks 13 | . . . . . . . . . . . . . . 13 Total Damage 461 | . . . . . . . . . . . . . . 461 Kills 3 | . . . . . . . . . . . . . . 3 Allies Corrupted . | . . . . . . . . . . . . . . . Allies Melted 1 | . . . . . . . . . . . . . . 1 Intel | -11 -10 -10 -9 -9 -9 -8 -8 -8 -8 -7 -7 -7 -7 -6 ------- Run | Scr Mat Min Mat Min Exi Min Mat Gar Mat Fac Low Low Dat Pro Robot Analysis Total . | . . . . . . . . . . . . . . . Derelict Logs Recovered 11 | . . 2 . 2 . . . . . . 3 3 . 1 Drone Launches . | . . . . . . . . . . . . . . . Drone Recoveries . | . . . . . . . . . . . . . . . Exploration | -11 -10 -10 -9 -9 -9 -8 -8 -8 -8 -7 -7 -7 -7 -6 ------------- Run | Scr Mat Min Mat Min Exi Min Mat Gar Mat Fac Low Low Dat Pro Turns Passed 8342 | 65 331 565 877 903 222 262 1192 384 972 347 685 1115 166 256 Spaces Moved 4957 | 41 288 506 407 504 145 146 672 213 436 256 554 526 93 170 Core 69 | 5 . . . 8 . . . . . . . . . 56 Treads 783 | . . . . . . . 252 142 107 50 . 232 . . Legs 1045 | . . . . 314 145 146 97 . . . . 175 93 75 Wheels 3060 | 36 288 506 407 182 . . 323 71 329 206 554 119 . 39 Hover . | . . . . . . . . . . . . . . . Flight . | . . . . . . . . . . . . . . . Fastest Speed 50 | 50 80 90 90 96 150 150 90 120 100 110 100 100 180 50 Average Speed 126 | 76 84 98 92 143 150 150 132 156 131 123 104 168 180 126 Slowest Speed 1100 | 80 90 100 100 800 150 150 160 180 200 180 110 300 180 1100 Overloaded Moves . | . . . . . . . . . . . . . . . Propulsion Burnouts . | . . . . . . . . . . . . . . . Robots Hopped . | . . . . . . . . . . . . . . . Cave-ins Triggered . | . . . . . . . . . . . . . . . Exploration Rate (%) 47 | 4 46 96 27 85 51 46 45 34 46 5 70 56 70 30 Regions Visited 14 Branch Regions 8 Pre-discovered Areas 3 | . . . . . 1 . . . . . 1 . 1 . Known Exits Taken 7 | . . 1 . 1 . . 1 . . 1 1 1 1 . Unknown Exits Taken 6 | 1 1 . 1 . 1 1 . . 1 . . . . . Scrap Searched 12 | . . 3 . 2 . 1 . . . . 2 3 . 1 Spaces Dug 4 | . . . . . . . . . . . 4 . . . Terrain Destroyed 217 | 4 . . . . . 80 40 70 8 . 15 . . . Melee 4 | . . . . . . . . . . . 4 . . . Projectile 4 | . . . . . . 1 3 . . . . . . . AOE 209 | 4 . . . . . 79 37 70 8 . 11 . . . Actions | -11 -10 -10 -9 -9 -9 -8 -8 -8 -8 -7 -7 -7 -7 -6 --------- Run | Scr Mat Min Mat Min Exi Min Mat Gar Mat Fac Low Low Dat Pro Total 6359 | 62 338 545 779 621 151 168 866 241 727 277 644 654 92 194 Wait 710 | . 11 10 286 62 . . 62 2 176 4 49 48 . . Move 4942 | 40 287 505 406 503 144 145 671 211 435 255 553 525 92 170 Hop . | . . . . . . . . . . . . . . . Pick Up 139 | 10 7 12 10 10 3 1 30 3 24 5 13 8 . 3 Fast Attach . | . . . . . . . . . . . . . . . Attach 80 | 6 2 2 10 5 . . 18 3 10 6 1 11 . 6 Detach 3 | . . . . . . . . 1 1 1 . . . . Swap 25 | . 3 . . 1 1 3 2 1 8 . 1 2 . 3 Drop 55 | . 3 1 . 4 3 1 13 . 13 1 11 3 . 2 Fire 361 | 6 25 15 67 36 . 18 60 18 53 5 4 54 . . Melee 34 | . . . . . . . 10 . 7 . 7 . . 10 Ram . | . . . . . . . . . . . . . . . Kick . | . . . . . . . . . . . . . . . Crush . | . . . . . . . . . . . . . . . Escape Stasis 2 | . . . . . . . . 2 . . . . . . Rewire . | . . . . . . . . . . . . . . . Trap 8 | . . . . . . . . . . . 5 3 . . Miscellaneous . | . . . . . . . . . . . . . . . Route ------- -11/Scrapyard -10/Materials (discovered 3 exits: *Mat x2 / *Min) -10/Mines (discovered 2 exits: *Mat x2) -9/Materials -9/Mines (discovered 3 exits: *Mat x2 / *Exi) -9/Exiles -8/Mines (discovered 2 exits: *Mat x2) -8/Materials (discovered 2 exits: [*Sto] / Gar) -8/Garrison -8/Materials -7/Factory -7/Lower Caves -7/Lower Caves -7/Data Miner -6/Proximity Caves (discovered 1 exit: Fac) History --------- Turn | Location | Event 18 | -11/Scrapyard | Discovered new exit (range 15) 66 | -11/Scrapyard | Entered Materials 217 | -10/Materials | Discovered new exit (range 16) 281 | -10/Materials | Discovered new exit (range 13) 310 | -10/Materials | Build established: Mutant 329 | -10/Materials | Discovered new exit (range 10) 397 | -10/Materials | Entered Mines 397 | -10/Mines | Accompanied by 1 ally 408 | -10/Mines | Discovered new exit (range 12) 429 | -10/Mines | Met a Derelict shopkeep closing up shop 495 | -10/Mines | Identified exit to Materials 683 | -10/Mines | Learned Materials emergency access door positions 870 | -10/Mines | Core integrity fell below 50% 962 | -10/Mines | Entered Materials 962 | -9/Materials | Accompanied by 1 ally 962 | -9/Materials | Evolved 2 slots: Propulsion x1, Utility x1 1173 | -9/Materials | Repaired Imp. Light Armor Plating 1201 | -9/Materials | Repaired Wheel 1649 | -9/Materials | Lost 3 parts (1p2w) 1831 | -9/Materials | Discovered new exit (range 8) 1839 | -9/Materials | Entered Mines 1882 | -9/Mines | Learned location of 1 exit from Proximity Caves 2112 | -9/Mines | Discovered new exit (range 4) 2124 | -9/Mines | Discovered new exit (range 14) 2254 | -9/Mines | Identified exit to Exiles 2337 | -9/Mines | Deemed a non-threat by the Exiles lab entrance 2487 | -9/Mines | A weapon hastily lodged in a ceiling crevice suddenly fell to the ground 2742 | -9/Mines | Entered Exiles 2789 | -9/Exiles | Met 8R-AWN 2814 | -9/Exiles | Met EX-HEX 2865 | -9/Exiles | Met EX-BIN 2885 | -9/Exiles | Met EX-DEC 2894 | -9/Exiles | Learned location of Zion (-6) 2948 | -9/Exiles | Discovered new exit (range 14) 2964 | -9/Exiles | Entered Mines 3199 | -8/Mines | Discovered new exit (range 7) 3218 | -8/Mines | Discovered new exit (range 5) 3226 | -8/Mines | Entered Materials 3226 | -8/Materials | Evolved 2 slots: Propulsion x1, Utility x1 3569 | -8/Materials | Discovered new exit (range 11) 3676 | -8/Materials | Lost 3 parts (1p2n) 3766 | -8/Materials | Lost 3 parts (1n2w) 3927 | -8/Materials | Repaired Hacking Suite 3968 | -8/Materials | Repaired Hacking Suite 4000 | -8/Materials | Build established: Scavenger-Mutant 4416 | -8/Materials | Identified exit to Garrison 4418 | -8/Materials | Entered Garrison 4470 | -8/Garrison | Triggered checkpoint 4502 | -8/Garrison | Triggered checkpoint 4595 | -8/Garrison | Discovered new exit (range 9) 4624 | -8/Garrison | Installed Relay Interface Framework 4670 | -8/Garrison | Triggered checkpoint 4715 | -8/Garrison | Garrison Relay disabled 4802 | -8/Garrison | Entered Materials 4828 | -8/Materials | Build established: Hauler-Mutant 5042 | -8/Materials | Core integrity fell below 50% 5202 | -8/Materials | First assault squad dispatched 5551 | -8/Materials | Core integrity fell below 20% 5584 | -8/Materials | Discovered new exit (range 13) 5661 | -8/Materials | Repaired Imp. VTOL Module 5690 | -8/Materials | Repaired Lgt. Treads 5718 | -8/Materials | Repaired Wheel 5774 | -8/Materials | Entered Factory 5774 | -7/Factory | Evolved 2 slots: Utility x2 5960 | -7/Factory | Discovered new exit (range 6) 6028 | -7/Factory | Identified exit to Lower Caves 6121 | -7/Factory | Entered Lower Caves 6209 | -7/Lower Caves | Encountered a Warlord checkpoint 6410 | -7/Lower Caves | Build established: Scavenger-Mutant 6627 | -7/Lower Caves | Learned Factory emergency access door positions 6650 | -7/Lower Caves | Spotted B-75 Beast 6749 | -7/Lower Caves | Identified exit to Lower Caves 6761 | -7/Lower Caves | Build established: Hauler-Mutant 6806 | -7/Lower Caves | Entered another Lower Caves area 7026 | -7/Lower Caves | Encountered a Warlord checkpoint 7149 | -7/Lower Caves | Lost 6 parts (1p3n2w) 7186 | -7/Lower Caves | Learned Factory stockpile data 7499 | -7/Lower Caves | Core integrity fell below 50% 7543 | -7/Lower Caves | Lost 6 parts (1p3n2w) 7604 | -7/Lower Caves | Discovered new exit (range 10) 7622 | -7/Lower Caves | Learned 8 Factory zone layouts 7641 | -7/Lower Caves | Learned Factory stockpile data 7841 | -7/Lower Caves | Spotted B-75 Beast 7903 | -7/Lower Caves | Identified exit to Data Miner 7921 | -7/Lower Caves | Entered Data Miner 7921 | -7/Data Miner | Discovered new exit (range 7) 7956 | -7/Data Miner | Met Data Miner 8011 | -7/Data Miner | Learned location of Section 7 (-2) 8011 | -7/Data Miner | Acquired the access code to Warlord's prototype stash 8033 | -7/Data Miner | Received God Mode back door access code from Data Miner 8085 | -7/Data Miner | Identified exit to Proximity Caves 8087 | -7/Data Miner | Entered Proximity Caves 8088 | -6/Proximity Caves | Identified exit to Factory 8200 | -6/Proximity Caves | Escorted by Enhanced Grunt 8277 | -6/Proximity Caves | Released all parts (9) 8278 | -6/Proximity Caves | Core integrity fell below 20% 8316 | -6/Proximity Caves | Learned location of 1 exit from Factory 8343 | -6/Proximity Caves | Destroyed by G-67 Veteran with Plasma Rifle Last Messages --------------- 08276_ Hrd. Light Armor Plating destroyed. 08277_ Released Great Maul. 08277_ Released Scythe. 08277_ Released Lrg. Storage Unit. 08277_ Released Hacking Suite. 08277_ Released Lrg. Storage Unit. 08277_ Released Adv. Signal Interpreter. 08277_ Released Lgt. Nuclear Core. 08277_ Released Hacking Suite. 08278_ Acquired 35 matter. 08303_ Searching scrap... 08303_ Found 46 Matter. 08303_ Found Mak. Shrapnel Gun. 08303_ Found Arc Thrower. 08303_ Found Arm. Wheel. 08305_ Acquired 10 matter. 08305_ Acquired Arm. Wheel. 08308_ Acquired Arc Thrower. 08316_ Acquired derelict log, extracted data. Data stored: Factory exits (x1). Map ----- +----------------------------------------------------+ | # #??? ????????????????????????????????????? | | # ##? #????????????????????????????????????? | | ## ## ##??????????????? ???????????????????? | | ### # #??????????????? ??????????????????? | | ?### # # #??????????????# ??????????????????? | | ???# # #?????????????## ?????????????????? | | ##### #?????????????## ??????????????????? | | ## ###??????##??#### ??????????????????? | | ## ##???????# ?## ???????????????????? | | # # ##?????### ?# ???????????????????? | | # # ##?????## ???# #???????????????????? | | #??????? ????# #???????????????????? | | ## #??????? ????# ####????????????????? | | ?## ##??????# #????# #????????????????? | | # # ###????# #?????# #????????????????? | | # ##???# #?????# ##???????????????? | | # #???# #?????# ###?????????????? | | # #### #??## [#??#### ##????????????? | | # ???## #??# %#?## ## #????????????? | | # ????# ##??#### ### #### #???????????? | | # #????# ####???# g #???# ##???????????? | | # ????## ## ##### g ##????####????????????? | | # ???## # ## ## #?????????????????????? | | # # #### #######????????????????? | | # ?# ##??### ### ##???????????????? | | # ### ##?????# @## ##??????????????? | | # #??## ###??????## ##?????????????? | | ##????###?????????## #?????????????? | | # #???????????????????##### ###?????????????? | | ????????????????????????# ##???????????????? | | ????????????????????????# ##????????????????? | | # ????????????????????????# ##?????????????????? | | ##?????????????????????????####??????????????????? | | ?????????????????????????????????????????????????? | | ?????????????????????????????????????????????????? | | ?????????????????????????????????????????????????? | | ?????????????????????????????????????????????????? | | ?????????????????????????????????????????????????? | | ?????????????????????????????????????????????????? | | ?????????????????????????????????????????????????? | | ?????????????????????????????????????????????????? | | ?????????????????????????????????????????????????? | | ?????????????????????????????????????????????????? | | ?????????????????????????????????????????????????? | | ?????????????????????????????????????????????????? | | ?????????????????????????????????????????????????? | | ?????????????????????????????????????????????????? | | ?????????????????????????????????????????????????? | | ?????????????????????????????????????????????????? | | | +----------------------------------------------------+ Best States ------------- Heat Dissipation 34 Energy Generation 18 Energy Capacity 265 Matter Stores 300 Matter Capacity 300 Sight Range 16 Terrain Scan Density 10 Armor Coverage 150 Evasion (%) 50 Recoil Reduction 3 Offensive Hacking 20 Item Schematics ----------------- Hacking Suite | -8/Materials | Scanalyzed Fission Core | -8/Materials | Scanalyzed Cesium-ion Thruster | -8/Materials | Scanalyzed Imp. Terrain Scan Processor | -8/Materials | Scanalyzed Hrd. Light Armor Plating | -8/Materials | Scanalyzed Maneuvering Thrusters | -8/Materials | Scanalyzed Lgt. Nuclear Core | -8/Materials | Scanalyzed Scythe | -8/Materials | Scanalyzed Imp. VTOL Module | -7/Lower Caves | Hacked Combat Drone Bay | -7/Data Miner | Free Lgt. Regenerative Plating | -7/Data Miner | Free Exp. Flexi-carbon Leg | -7/Data Miner | Free Exp. Sensor Array | -7/Data Miner | Free Exp. Transmission Jammer | -7/Data Miner | Free Mni. Smartbomb Launcher | -7/Data Miner | Free Kinetic Spear | -7/Data Miner | Free Robot Schematics ------------------ None Fabricated ------------ Nothing Alien Tech Used ----------------- None Achievements -------------- None Challenges ------------ None Game ------ Seed WarpCoreCompactor Manual? 0 Play Time 01:03:19 Cumulative 283.4 hours Start 2019.12.23 @ 13:37:26 End 2019.12.23 @ 14:46:12 Sessions 1 Manual Loads 0 Difficulty Rogue Special Mode None Game No. 323 Rogue 323 Adventurer 0 Explorer 0 Win Type - Total 3 Types 1/1/0/1/0/0/0 Lore% 66 Gallery% 84 Achievement% 64 Wizard Run 0 Options --------- ASCII 0 Keyboard 0 Movement Numpad Keybinds 0 Fullscreen 1 Font 16/Terminus Map View 75x55 Tactical HUD 1 Map Filters NONE Filters NONE Steam 1 RUN: f29c4b21-f15c-4651-b198-9033211f4aa0